fUSD/lending_fUSD_20251228
["ID","MTS","AMOUNT","RATE_DAILY","PERIOD"]
[399928431,1766884240394,-150.0,0.00016394,2]
[399928432,1766884240403,-150.0,0.00016395,2]
[399928433,1766884240412,-150.0,0.0001642,2]
[399928434,1766884240421,-150.0,0.0001642,2]
[399928435,1766884240431,-150.0,0.0001642,2]
[399928436,1766884240440,-274.8558218,0.00016421,2]
[399928437,1766884240450,-150.0,0.00016433,2]
[399928438,1766884240459,-500.0,0.00016438,2]
[399928439,1766884240472,-500.0,0.00016438,2]
[399928440,1766884240482,-500.0,0.00016438,2]
[399928441,1766884240491,-500.0,0.00016438,2]
[399928442,1766884240500,-500.0,0.00016438,2]
[399928443,1766884240509,-500.0,0.00016438,2]
[399928444,1766884240518,-500.0,0.00016438,2]
[399928445,1766884240528,-500.0,0.00016438,2]
[399928446,1766884240537,-500.0,0.00016438,2]
[399928447,1766884240547,-500.0,0.00016438,2]
[399928448,1766884240557,-163.62963519,0.00016438,2]
[399928449,1766884240566,-500.0,0.00016438,2]
[399928450,1766884240575,-500.0,0.00016438,2]
[399928451,1766884240584,-500.0,0.00016438,2]
[399928452,1766884240593,-1499.24,0.00016438,2]
[399928453,1766884240602,-856.80606681,0.00016438,2]
[399928454,1766884240612,-575.90168955,0.00016457,2]
[399928455,1766884240621,-150.0,0.00016469,2]
[399928456,1766884240630,-150.0,0.00016473,2]
[399928457,1766884240639,-150.0,0.00016477,2]
[399928458,1766884240649,-150.0,0.00016487,2]
[399928459,1766884240659,-150.0,0.00016512,2]
[399928460,1766884240668,-150.0,0.00016533,2]
[399928461,1766884240677,-150.0,0.00016543,2]
[399928462,1766884240686,-150.0,0.00016552,2]
[399928463,1766884240695,-150.0,0.00016562,2]
[399928464,1766884240705,-150.0,0.00016562,2]
[399928465,1766884240714,-200.0,0.00016566,2]
[399928466,1766884240724,-1212.14,0.00016566,2]
[399928467,1766884240733,-150.0,0.00016587,2]
[399928468,1766884240743,-150.0,0.00016591,2]
[399928469,1766884240752,-150.0,0.00016617,2]
[399928470,1766884240761,-150.0,0.00016631,2]
[399928471,1766884240771,-150.0,0.00016647,2]
[399928472,1766884240780,-150.0,0.00016647,2]
[399928473,1766884240789,-150.0,0.00016647,2]
[399928474,1766884240798,-150.0,0.00016647,2]
[399928475,1766884240808,-150.0,0.0001667,2]
[399928476,1766884240817,-150.0,0.00016687,2]
[399928477,1766884240826,-150.0,0.00016691,2]
[399928478,1766884240836,-150.0,0.00016699,2]
[399928479,1766884240845,-150.0,0.00016699,2]
[399928480,1766884240854,-150.0,0.00016699,2]
[399928481,1766884240864,-150.0,0.00016699,2]
[399928482,1766884240873,-150.0,0.00016699,2]
[399928483,1766884240882,-150.0,0.00016699,2]
[399928484,1766884240892,-150.0,0.00016699,2]
[399928485,1766884240901,-150.0,0.00016699,2]
[399928486,1766884240910,-150.0,0.00016699,2]
[399928487,1766884240919,-150.0,0.00016699,2]
[399928488,1766884240929,-150.0,0.00016699,2]
[399928489,1766884240938,-157.37598018,0.00016699,2]
[399928490,1766884240947,-150.0,0.00016699,2]
[399928491,1766884240957,-500.0,0.00016699,2]
[399928492,1766884240966,-150.0,0.00016699,2]
[399928493,1766884240975,-150.0,0.00016699,2]
[399928494,1766884240984,-150.0,0.00016699,2]
[399928495,1766884240993,-150.0,0.00016699,2]
[399928496,1766884241002,-150.0,0.00016699,2]
[399928497,1766884241012,-150.0,0.00016703,2]
[399928498,1766884241022,-150.0,0.0001671,2]
[399928500,1766884241032,-164.63,0.00016712,2]
[399928501,1766884241040,-150.0,0.00016726,2]
[399928502,1766884241050,-150.0,0.00016726,2]
[399928503,1766884241059,-150.0,0.00016726,2]
[399928504,1766884241068,-150.0,0.00016726,2]
[399928505,1766884241077,-150.0,0.00016726,2]
[399928506,1766884241086,-150.0,0.00016726,2]
[399928507,1766884241095,-150.0,0.00016726,2]
[399928508,1766884241105,-200.0,0.00016726,2]
[399928509,1766884241114,-150.0,0.00016726,2]
[399928510,1766884241126,-150.0,0.00016726,2]
[399928511,1766884241135,-150.0,0.00016726,2]
[399928512,1766884241145,-500.0,0.00016726,2]
[399928513,1766884241154,-150.0,0.00016726,2]
[399928514,1766884241162,-150.0,0.00016726,2]
[399928515,1766884241171,-150.0,0.00016726,2]
[399928516,1766884241181,-150.0,0.00016732,2]
[399928517,1766884241190,-897.38778648,0.00016738,2]
[399928518,1766884241199,-150.0,0.00016749,2]
[399928519,1766884241208,-150.0,0.00016754,2]
[399928520,1766884241217,-200.0,0.00016754,2]
[399928521,1766884241226,-150.0,0.00016754,2]
[399928522,1766884241236,-200.0,0.00016754,2]
[399928523,1766884241245,-200.0,0.00016754,2]
[399928524,1766884241255,-150.0,0.00016754,2]
[399928525,1766884241264,-150.0,0.00016754,2]
[399928526,1766884241273,-150.0,0.00016754,2]
[399928527,1766884241283,-500.0,0.00016754,2]
[399928528,1766884241292,-150.0,0.00016754,2]
[399928529,1766884241301,-200.0,0.00016754,2]
[399928530,1766884241311,-150.0,0.00016754,2]
[399928531,1766884241321,-150.0,0.0001676,2]
[399928532,1766884241330,-150.0,0.00016765,2]
[399928533,1766884241339,-150.0,0.00016774,2]
[399928534,1766884241350,-150.0,0.00016781,2]
[399928535,1766884241359,-204.87198878,0.00016781,2]
[399928536,1766884241368,-150.0,0.00016781,2]
[399928537,1766884241377,-168.17668098,0.00016781,2]
[399928538,1766884241386,-150.0,0.00016781,2]
[399928539,1766884241396,-150.0,0.00016781,2]
[399928540,1766884241405,-150.0,0.00016781,2]
[399928541,1766884241415,-150.0,0.00016786,2]
[399928542,1766884241424,-150.0,0.00016789,2]
[399928543,1766884241433,-150.0,0.00016809,2]
[399928544,1766884241443,-234.0,0.00016809,2]
[399928545,1766884241452,-150.0,0.00016816,2]
[399928546,1766884241462,-150.0,0.00016828,2]
[399928547,1766884241471,-150.0,0.00016839,2]
[399928548,1766884241481,-1212.15299728,0.0001684,2]
[399928549,1766884241490,-150.0,0.00016868,2]
[399928550,1766884241500,-150.0,0.00016873,2]
[399928551,1766884241509,-150.0,0.00016886,2]
[399928552,1766884241519,-179.67945815,0.00016893,2]
[399928553,1766884241528,-581.7502333,0.000169,2]
[399928554,1766884241538,-150.0,0.00016901,2]
[399928555,1766884241548,-150.0,0.00016907,2]
[399928556,1766884241557,-150.0,0.00016912,2]
[399928557,1766884241567,-150.0,0.00016947,2]
[399928558,1766884241577,-401.71537473,0.0001697,2]
[399928559,1766884241587,-500.0,0.00016973,2]
[399928560,1766884241597,-500.0,0.00016973,2]
[399928561,1766884241607,-501.99535785,0.00016973,2]
[399928562,1766884241616,-500.0,0.00016973,2]
[399928563,1766884241626,-284.26223188,0.00016973,2]
[399928564,1766884241635,-500.0,0.00016973,2]
[399928565,1766884241645,-500.0,0.00016973,2]
[399928566,1766884241655,-500.0,0.00016973,2]
[399928567,1766884241664,-500.0,0.00016973,2]
[399928568,1766884241674,-500.0,0.00016973,2]
[399928569,1766884241683,-500.0,0.00016973,2]
[399928570,1766884241693,-500.0,0.00016973,2]
[399928571,1766884241703,-500.0,0.00016973,2]
[399928572,1766884241712,-500.0,0.00016973,2]
[399928573,1766884241722,-500.0,0.00016973,2]
[399928574,1766884241731,-500.0,0.00016973,2]
[399928575,1766884241740,-452.67285024,0.00016973,2]
[399928576,1766884241750,-500.77244015,0.00016973,2]
[399928577,1766884241759,-427.03129014,0.00016973,2]
[399928578,1766884241769,-177.66646161,0.00016973,2]
[399928579,1766884241778,-160.34717711,0.00016973,2]
[399928580,1766884241787,-500.0,0.00016973,2]
[399928581,1766884241796,-500.0,0.00016973,2]
[399928582,1766884241806,-500.0,0.00016973,2]
[399928583,1766884241815,-500.0,0.00016973,2]
[399928584,1766884241824,-500.0,0.00016973,2]
[399928585,1766884241834,-374.72817766,0.00016973,2]
[399928586,1766884241843,-500.0,0.00016973,2]
[399928587,1766884241854,-500.0,0.00016973,2]
[399928588,1766884241863,-500.0,0.00016973,2]
[399928589,1766884241873,-500.0,0.00016973,2]
[399928590,1766884241882,-500.0,0.00016973,2]
[399928591,1766884241891,-500.0,0.00016973,2]
[399928592,1766884241900,-500.0,0.00016973,2]
[399928593,1766884241910,-160.34461177,0.00016973,2]
[399928594,1766884241918,-500.0,0.00016973,2]
[399928595,1766884241928,-543.24024385,0.00016973,2]
[399928596,1766884241938,-500.0,0.00016973,2]
[399928597,1766884241948,-500.0,0.00016973,2]
[399928598,1766884241958,-500.0,0.00016973,2]
[399928599,1766884241967,-1227.0,0.00016986,2]
[399928600,1766884241977,-290.0,0.00016986,2]
[399928601,1766884241986,-150.0,0.00016986,2]
[399928602,1766884241996,-150.0,0.00016986,2]
[399928603,1766884242007,-220.91600812,0.00016986,2]
[399928604,1766884242016,-150.0,0.00016986,2]
[399928605,1766884242025,-150.0,0.00016986,2]
[399928606,1766884242034,-150.0,0.00016986,2]
[399928607,1766884242044,-150.0,0.00016986,2]
[399928608,1766884242054,-150.00000001,0.00016986,2]
[399928609,1766884242063,-150.00000001,0.00016986,2]
[399928610,1766884242073,-150.0,0.00016986,2]
[399928611,1766884242082,-150.0,0.00016986,2]
[399928612,1766884242092,-150.0,0.00016986,2]
[399928613,1766884242101,-255.24,0.00016989,2]
[399928614,1766884242111,-163.77,0.00016989,2]
[399928615,1766884242123,-133156.7748168,0.00016993,2]
[399928616,1766884242134,-3154.3931007,0.00016993,2]
[399928617,1766884242144,-151.0,0.00016997,2]
[399928618,1766884242154,-151.0,0.00016997,2]
[399928619,1766884242165,-500.0,0.00016999,2]
[399928620,1766884242175,-500.0,0.00016999,2]
[399928621,1766884242184,-500.0,0.00016999,2]
[399928622,1766884242194,-150.0,0.00016999,2]
[399928623,1766884242205,-513.77,0.00016999,2]
[399928624,1766884242214,-513.77,0.00016999,2]
[399928625,1766884242223,-513.77,0.00016999,2]
[399928626,1766884242233,-513.77,0.00016999,2]
[399928627,1766884242242,-513.77,0.00016999,2]
[399928628,1766884242252,-513.77,0.00016999,2]
[399928629,1766884242262,-740200.39283435,0.00017,2]
[399928630,1766884242272,-570336.98226373,0.00017,2]
[399928631,1766884242281,-1000.0,0.00017,2]
[399928632,1766884242291,-250.0,0.00017,2]
[399928633,1766884242301,-249.88,0.00017046,2]
[399928634,1766884242310,-433.0,0.00017056,2]
[399928635,1766884242319,-23317.22849263,0.00017333,2]
[399928636,1766884242329,-17757.19888566,0.00017334,2]
[399928637,1766884242339,-753.53,0.00017368,2]
[399928638,1766884242349,-1077.35819012,0.00017521,2]
[399928639,1766884242358,-1000.0,0.00017521,2]
[399928640,1766884242368,-839.91585429,0.00017521,2]
[399928641,1766884242377,-1000.0,0.00017521,2]
[399928642,1766884242386,-1000.0,0.00017521,2]
[399928643,1766884242396,-1002.53802588,0.00017521,2]
[399928644,1766884242405,-500.0,0.00017521,2]
[399928645,1766884242414,-1000.0,0.00017521,2]
[399928646,1766884242425,-693.74393665,0.00017521,2]
[399928647,1766884242434,-1001.32447433,0.00017521,2]
[399928648,1766884242445,-620.86010715,0.00017521,2]
[399928649,1766884242455,-1000.0,0.00017521,2]
[399928650,1766884242465,-1000.0,0.00017521,2]
[399928651,1766884242475,-384.47833139,0.00017521,2]
[399928652,1766884242484,-501.16055069,0.00017521,2]
[399928653,1766884242493,-1000.0,0.00017521,2]
[399928654,1766884242503,-1137.52743212,0.00017521,2]
[399928655,1766884242512,-1000.0,0.00017521,2]
[399928656,1766884242522,-500.61638625,0.00017521,2]
[399928657,1766884242532,-166.57,0.00017546,2]
[399928658,1766884242542,-587.0,0.00017635,2]
[399928659,1766884242551,-523.0,0.00017635,2]
[399928660,1766884242561,-207.4,0.00017661,2]
[399928661,1766884242570,-152.0,0.00017694,2]
[399928662,1766884242580,-153.0,0.00017694,2]
[399928663,1766884242590,-155.29267278,0.00017694,2]
[399928664,1766884242599,-152.0,0.00017694,2]
[399928665,1766884242609,-152.0,0.00017694,2]
[399928666,1766884242619,-152.0,0.00017694,2]
[399928667,1766884242628,-1257.0,0.00017694,2]
[399928668,1766884242638,-152.0,0.00017694,2]
[399928669,1766884242648,-1257.0,0.00017694,2]
[399928670,1766884242657,-1257.0,0.00017694,2]
[399928671,1766884242667,-152.0,0.00017694,2]
[399928672,1766884242677,-1257.0,0.00017694,2]
[399928673,1766884242687,-153.0,0.00017694,2]
[399928674,1766884242697,-152.0,0.00017694,2]
[399928675,1766884242706,-282.28633932,0.00017694,2]
[399928676,1766884242715,-153.0,0.00017694,2]
[399928677,1766884242724,-154.0,0.00017694,2]
[399928678,1766884242734,-152.0,0.00017694,2]
[399928679,1766884242744,-153.0,0.00017694,2]
[399928681,1766884242753,-153.84928669,0.00017694,2]
[399928682,1766884242763,-152.0,0.00017694,2]
[399928683,1766884242772,-153.0,0.00017694,2]
[399928684,1766884242782,-294.63189932,0.00017694,2]
[399928685,1766884242792,-153.0,0.00017694,2]
[399928686,1766884242802,-153.0,0.00017694,2]
[399928687,1766884242811,-153.0,0.00017694,2]
[399928688,1766884242821,-153.0,0.00017694,2]
[399928689,1766884242830,-153.0,0.00017694,2]
[399928690,1766884242840,-276.38261487,0.00017694,2]
[399928691,1766884242849,-2351.0,0.00017804,2]
[399928692,1766884242859,-250.0,0.00017809,2]
[399928693,1766884242868,-4208.8,0.00017964,2]
[399928694,1766884242878,-424.20807152,0.00018068,2]
[399928695,1766884242888,-1500.0,0.00018068,2]
[399928696,1766884242898,-1000.0,0.00018068,2]
[399928697,1766884242907,-1500.0,0.00018068,2]
[399928698,1766884242918,-1500.0,0.00018068,2]
[399928699,1766884242928,-505.95559397,0.00018068,2]
[399928700,1766884242937,-816.0,0.00018082,2]
[399928701,1766884242947,-1000.0,0.00018082,2]
[399928702,1766884242957,-255.24,0.00018097,2]
[399928703,1766884242966,-163.77,0.00018097,2]
[399928704,1766884242976,-249.88,0.00018172,2]
[399928705,1766884242986,-2011.32114333,0.00018183,2]
[399928706,1766884242995,-162.09,0.0001827,2]
[399928707,1766884243005,-736.0,0.00018352,2]
[399928708,1766884243015,-1258.3527002,0.00018471,2]
[399928709,1766884243024,-4358.8533409,0.0001849,2]
[399928710,1766884243034,-1189.6061733,0.0001849,2]
[399928711,1766884243043,-13253.0514919,0.0001849,2]
[399928712,1766884243254,-8195.04,0.00018533,2]
[399928713,1766884243265,-9999.99,0.00018533,2]
[399928714,1766884243275,-23350.52,0.00018533,2]
[399928715,1766884243285,-500.0,0.00018559,2]
[399928716,1766884243295,-942.48151222,0.00018616,2]
[399928717,1766884243304,-1001.82577211,0.00018616,2]
[399928718,1766884243314,-1000.0,0.00018616,2]
[399928719,1766884243323,-1000.0,0.00018697,2]
[399928720,1766884243334,-465.64068982,0.00018746,2]
[399928721,1766884243343,-1000.0,0.0001876,2]
[399928722,1766884243353,-152.00980716,0.00018782,2]
[399928723,1766884243363,-40504.94,0.00018792,2]
[399928724,1766884243372,-280.7764395,0.00018938,2]
[399928725,1766884243382,-972.591644,0.0001896,2]
[399928726,1766884243391,-265.4370159,0.0001896,2]
[399928727,1766884243401,-2957.1555018,0.0001896,2]
[399928728,1766884243410,-513.77,0.00018999,2]
[399928729,1766884243420,-2372.79854907,0.00019,2]
[399928730,1766884243430,-143972.8973496,0.00019,2]
[399928731,1766884243439,-710.39799422,0.00019,2]
[399928732,1766884243449,-300.0,0.00019,2]
[399928733,1766884243459,-151.0,0.00019,2]
[399928734,1766884243468,-460.573653,0.00019,2]
[399928735,1766884243478,-151.0,0.00019,2]
[399928736,1766884243488,-460.573653,0.00019,2]
[399928737,1766884243498,-151.0,0.00019,2]
[399928738,1766884243507,-460.573653,0.00019,2]
[399928739,1766884243517,-460.573653,0.00019,2]
[399928740,1766884243527,-500.0,0.00019178,2]
[399928741,1766884243537,-150.0,0.00019178,2]
[399928743,1766884243547,-151.0,0.0001918,2]
[399928745,1766884243557,-151.0,0.0001918,2]
[399928746,1766884243566,-151.0,0.0001918,2]
[399928747,1766884243576,-151.0,0.0001918,2]
[399928748,1766884243585,-151.0,0.0001918,2]
[399928749,1766884243595,-151.0,0.0001918,2]
[399928750,1766884243604,-151.0,0.0001918,2]
[399928751,1766884243614,-151.0,0.0001918,2]
[399928752,1766884243624,-298.038457,0.0001918,2]
[399928753,1766884243633,-151.0,0.0001918,2]
[399928755,1766884243643,-151.0,0.0001918,2]
[399928756,1766884243653,-151.0,0.0001918,2]
[399928757,1766884243662,-151.0,0.0001918,2]
[399928758,1766884243671,-151.0,0.0001918,2]
[399928759,1766884243681,-151.0,0.0001918,2]
[399928760,1766884243690,-151.0,0.0001918,2]
[399928761,1766884243699,-151.0,0.0001918,2]
[399928762,1766884243709,-151.293371,0.0001918,2]
[399928763,1766884243718,-239.830442,0.0001918,2]
[399928764,1766884243728,-239.830442,0.0001918,2]
[399928765,1766884243738,-239.830442,0.0001918,2]
[399928766,1766884243747,-239.830442,0.0001918,2]
[399928767,1766884243756,-151.0,0.0001918,2]
[399928768,1766884243767,-151.0,0.0001918,2]
[399928769,1766884243776,-151.0,0.0001918,2]
[399928770,1766884243785,-151.0,0.0001918,2]
[399928771,1766884243795,-25382.76040601,0.0001918,2]
[399928772,1766884243817,-2524.94000031,0.0001918,2]
[399928773,1766884243829,-1803.59208338,0.0001918,2]
[399928774,1766884243838,-500.0,0.00019205,2]
[399928775,1766884243847,-500.0,0.00019233,2]
[399928776,1766884243857,-500.0,0.0001926,2]
[399928777,1766884243867,-500.0,0.00019288,2]
[399928778,1766884243877,-753.53,0.00019298,2]
[399928779,1766884243886,-253.0,0.00019306,2]
[399928780,1766884243896,-500.0,0.00019315,2]
[399928781,1766884243906,-151.0,0.00019339,2]
[399928782,1766884243916,-151.0,0.00019339,2]
[399928783,1766884243926,-151.0,0.00019339,2]
[399928784,1766884243936,-9999.99,0.00019339,2]
[399928785,1766884243946,-150.99,0.00019339,2]
[399928786,1766884243955,-999.99,0.00019339,2]
[399928787,1766884243965,-12627.53,0.00019339,2]
[399928788,1766884243975,-299.99,0.00019339,7]
[399928789,1766884243984,-1545.06,0.00019339,2]
[399928790,1766884243994,-500.0,0.00019342,2]
[399928791,1766884244004,-500.0,0.0001937,2]
[399928792,1766884244013,-212.7,0.00019383,2]
[399928793,1766884244023,-500.0,0.00019397,2]
[399928794,1766884244032,-500.0,0.00019425,2]
[399928795,1766884244042,-1000.0,0.00019438,2]
[399928796,1766884244051,-318.80351721,0.00019452,2]
[399928797,1766884244061,-272.95,0.00019463,2]
[399928798,1766884244070,-166.59,0.0001951,2]
[399928799,1766884244080,-201.95623857,0.0001956,2]
[399928800,1766884244091,-10.74376143,0.0001956,2]
[399928801,1766884244101,-599.30685012,0.00019584,2]
[399928802,1766884244112,-2629.97761171,0.00019584,2]
[399928803,1766884244126,-62.71553817,0.00019584,2]
[399928804,1766884244135,-157.0479849,0.00019645,2]
[399928805,1766884244145,-561.05457908,0.00019668,2]
[399928806,1766884244156,-999.0,0.00019668,2]
[399928807,1766884244167,-5069.43087232,0.00019668,2]
[399928808,1766884244177,-150.0,0.00019669,2]
[399928809,1766884244186,-166.59,0.00019721,2]
[399928810,1766884244196,-209.86454372,0.00019726,2]
[399928811,1766884244205,-524.0,0.00019737,2]
[399928812,1766884244214,-1651.00081755,0.00019876,2]
[399928813,1766884244226,-2557.79918245,0.00019876,2]
[399928814,1766884244235,-23317.22849263,0.00019951,2]
[399928815,1766884244245,-17757.19888566,0.00019953,2]
[399928816,1766884244254,-37010.52641371,0.0002,5]
[399928817,1766884244266,-112.53691693,0.0002,5]
[399928818,1766884244275,-1000.0,0.00020116,2]
[399928819,1766884244285,-513.77,0.00020144,2]
[399928820,1766884244295,-400.0,0.0002017,2]
[399928821,1766884244305,-401.4,0.00020187,2]
[399928822,1766884244314,-233.02301459,0.00020217,2]
[399928823,1766884244323,-215.0738,0.000204,2]
[399928824,1766884244333,-192.47,0.00020548,2]
[399928825,1766884244343,-4257.62800548,0.00020591,2]
[399928826,1766884244429,-151.0,0.00015288,2]
[399928827,1766884244438,-151.0,0.00015521,2]
[399928828,1766884244447,-151.0,0.00015626,2]
[399928829,1766884244457,-151.0,0.00015626,2]
[399928830,1766884244466,-551.37199452,0.00020591,2]
[399928831,1766884244475,-2431.0,0.00020591,2]
[399928832,1766884244485,-564.0,0.00020591,2]
[399928833,1766884244494,-4199.93,0.00020748,2]
[399928834,1766884244504,-1000.0,0.00020795,2]
[399928835,1766884244513,-162.09,0.0002088,2]
[399928836,1766884244523,-523.91800548,0.000209,30]
[399928837,1766884244539,-975.79008711,0.000209,30]
[399928838,1766884244549,-917.59345766,0.00021,2]
[399928839,1766884244559,-170.96414223,0.00021,2]
[399928840,1766884244570,-341.70055902,0.00021,2]
[399928841,1766884244580,-350.0,0.00021,2]
[399928842,1766884244590,-1000.0,0.00021034,2]
[399928843,1766884244600,-152.00980716,0.00021129,2]
[399928844,1766884244610,-212.0,0.00021167,2]
[399928845,1766884244620,-200.0,0.00021167,2]
[399928846,1766884244629,-200.0,0.00021167,2]
[399928847,1766884244639,-250.0,0.00021167,2]
[399928848,1766884244648,-193.337,0.00021167,2]
[399928849,1766884244657,-224.232,0.00021167,2]
[399928850,1766884244667,-210.242,0.00021167,2]
[399928851,1766884244676,-250.0,0.00021167,2]
[399928852,1766884244686,-156.406,0.00021167,2]
[399928853,1766884244695,-217.31467635,0.00021167,2]
[399928854,1766884244712,-26.47732365,0.00021167,2]
[399928855,1766884244722,-190.495,0.00021167,2]
[399928856,1766884244732,-163.486,0.00021167,2]
[399928857,1766884244742,-150.375,0.00021167,2]
[399928858,1766884244752,-150.0,0.00021167,2]
[399928859,1766884244762,-1610.0,0.00021167,2]
[399928860,1766884244772,-3460.0,0.00021167,2]
[399928861,1766884244782,-622.71,0.00021167,2]
[399928862,1766884244792,-1330.033,0.00021167,2]
[399928863,1766884244801,-1269.446,0.00021167,2]
[399928864,1766884244811,-455.551,0.00021167,2]
[399928865,1766884244821,-912.0,0.00021167,2]
[399928866,1766884244830,-1198.0,0.00021167,2]
[399928867,1766884244839,-753.53,0.00021228,2]
[399928868,1766884244849,-30000.0,0.00021292,2]
[399928869,1766884244859,-500.0,0.00021363,2]
[399928870,1766884244869,-2048.0,0.00021543,2]
[399928871,1766884244879,-2011.32114333,0.00021636,2]
[399928872,1766884244888,-4208.8,0.00021789,2]
[399928873,1766884244898,-265.65,0.00021918,30]
[399928874,1766884244907,-5000.0,0.00021918,2]
[399928875,1766884244917,-500.0,0.00021918,2]
[399928876,1766884244926,-615.43392194,0.00021918,2]
[399928877,1766884244936,-457.31088561,0.00022,30]
[399928878,1766884244945,-1825.16,0.00022,7]
[399928879,1766884244955,-500.0,0.00022219,2]
[399928880,1766884244964,-866.54621751,0.00022322,2]
[399928881,1766884244974,-23317.22849263,0.00022568,2]
[399928882,1766884244983,-17757.19888566,0.00022571,2]
[399928883,1766884244993,-1099.0,0.00022651,2]
[399928884,1766884245003,-465.64068982,0.00022777,2]
[399928885,1766884245013,-204.73820807,0.00022805,4]
[399928886,1766884245029,-151.0,0.00022906,2]
[399928887,1766884245039,-500.0,0.00022906,2]
[399928888,1766884245048,-500.0,0.00022906,2]
[399928889,1766884245063,-500.0,0.00022906,2]
[399928890,1766884245073,-500.0,0.00022906,2]
[399928891,1766884245082,-250.0,0.00022906,2]
[399928892,1766884245092,-500.0,0.00022906,2]
[399928893,1766884245102,-500.0,0.00022906,2]
[399928894,1766884245112,-500.0,0.00022906,2]
[399928895,1766884245122,-500.0,0.00022906,2]
[399928896,1766884245134,-500.0,0.00022906,2]
[399928897,1766884245143,-500.0,0.00022906,2]
[399928898,1766884245153,-500.0,0.00022906,2]
[399928899,1766884245162,-436.66093114,0.00022906,2]
[399928900,1766884245173,-500.0,0.00022906,2]
[399928901,1766884245182,-500.0,0.00022906,2]
[399928902,1766884245191,-500.0,0.00022906,2]
[399928903,1766884245202,-1000.0,0.00022906,2]
[399928904,1766884245212,-1000.0,0.00022906,2]
[399928905,1766884245221,-500.0,0.00022906,2]
[399928906,1766884245231,-1000.0,0.00022906,2]
[399928907,1766884245241,-500.0,0.00022906,2]
[399928908,1766884245250,-578.20924308,0.00022906,2]
[399928909,1766884245260,-1000.0,0.00022906,2]
[399928911,1766884245270,-553.64373807,0.00022906,2]
[399928913,1766884245280,-500.0,0.00022906,2]
[399928915,1766884245289,-1000.0,0.00022906,2]
[399928917,1766884245300,-500.0,0.00022906,2]
[399928919,1766884245309,-500.0,0.00022906,2]
[399928921,1766884245318,-1000.0,0.00022906,2]
[399928923,1766884245328,-500.0,0.00022906,2]
[399928924,1766884245337,-1000.0,0.00022906,2]
[399928927,1766884245346,-500.0,0.00022906,2]
[399928929,1766884245356,-311.64066109,0.00022906,2]
[399928930,1766884245365,-1000.0,0.00022906,2]
[399928932,1766884245374,-500.0,0.00022906,2]
[399928934,1766884245384,-500.0,0.00022906,2]
[399928936,1766884245393,-1000.0,0.00022906,2]
[399928938,1766884245403,-500.0,0.00022906,2]
[399928940,1766884245412,-1000.0,0.00022906,2]
[399928943,1766884245422,-500.0,0.00022906,2]
[399928944,1766884245431,-500.0,0.00022906,2]
[399928947,1766884245444,-1000.0,0.00022906,2]
[399928949,1766884245453,-500.0,0.00022906,2]
[399928951,1766884245463,-1000.0,0.00022906,2]
[399928953,1766884245472,-500.0,0.00022906,2]
[399928955,1766884245482,-500.0,0.00022906,2]
[399928957,1766884245491,-500.0,0.00022906,2]
[399928958,1766884245500,-151.0,0.00022906,2]
[399928959,1766884245509,-151.0,0.00022906,2]